bitfinex/quotes_SOLUSD_20240716
["timestamp","ask_amount","ask_price","bid_price","bid_amount"]
[1721134762686,6.3992,156.27,156.23,1.2798697]
[1721134763403,6.3992,156.27,156.23,1.27995243]
[1721134764095,6.3992,156.27,156.24,1.27995381]
[1721134764301,6.3992,156.27,156.23,1.27995381]
[1721134764699,6.3992,156.27,156.23,7.68065381]
[1721134765618,6.3992,156.27,156.23,1.27995194]
[1721134765788,6.3992,156.27,156.23,7.68075194]
[1721134766285,6.399,156.28,156.25,15.76]
[1721134766598,1.27857464,156.3,156.27,15.76]
[1721134766792,6.3982,156.3,156.27,15.76]
[1721134767182,6.3983,156.29,156.27,15.76]
[1721134767938,1.27857464,156.32,156.28,15.76]
[1721134768144,6.3977,156.31,156.29,15.76]
[1721134768314,6.3982,156.3,156.25,6.3999]
[1721134768493,6.3984,156.29,156.24,54.0706]
[1721134768692,6.3984,156.29,156.25,0.17]
[1721134768895,15.9933,156.32,156.23,6.4007]
[1721134769097,6.3992,156.27,156.22,12.954]
[1721134769300,6.3992,156.27,156.23,0.17]
[1721134769515,6.3996,156.26,156.22,6.3829]
[1721134769715,1.27857464,156.29,156.22,6.3829]
[1721134769894,11.27857464,156.29,156.22,6.3829]
[1721134770093,6.4006,156.24,156.22,6.3829]
[1721134770407,6.4001,156.25,156.22,6.3829]
[1721134771230,1.27857464,156.24,156.2,16.155]
[1721134771522,6.4005,156.24,156.2,16.155]
[1721134772520,6.4,156.25,156.21,7.68176614]
[1721134772819,7.67827464,156.26,156.21,7.68176614]
[1721134773018,1.27857464,156.25,156.21,7.68176614]
[1721134773230,7.67877464,156.25,156.21,1.28026614]
[1721134773408,6.4002,156.25,156.21,1.28026614]
[1721134774135,6.3996,156.26,156.21,7.68176614]
[1721134774314,7.67817464,156.26,156.22,6.4011]
[1721134774506,6.3996,156.26,156.22,6.4011]
[1721134775206,6.3992,156.27,156.23,1.28009292]
[1721134775439,6.3992,156.27,156.22,6.4009]
[1721134775605,6.3992,156.27,156.23,1.28003215]
[1721134775826,6.3996,156.26,156.23,1.28003215]
[1721134776530,6.3992,156.27,156.23,1.28003215]
[1721134776739,7.67807464,156.26,156.23,1.28003215]
[1721134776941,6.3995,156.26,156.22,6.4009]
[1721134777726,6.3992,156.27,156.22,6.4009]
[1721134778835,6.3996,156.26,156.22,6.4009]
[1721134779034,7.67867464,156.25,156.2,38.5617]
[1721134779336,6.4001,156.25,156.21,6.4016]
[1721134779544,6.3996,156.26,156.21,6.4016]
[1721134779832,1.27857464,156.25,156.21,6.4016]
[1721134780045,1.27857464,156.25,156.21,7.68169977]
[1721134780411,6.3996,156.26,156.21,7.68169977]
[1721134780932,1.27857464,156.25,156.21,7.68169977]
[1721134781247,6.4004,156.24,156.2,32.1598]
[1721134781444,6.4004,156.24,156.2,38.5617]
[1721134782214,7.67957464,156.23,156.2,16.155]
[1721134782414,6.4013,156.22,156.2,16.155]
[1721134782613,6.4013,156.22,156.18,12.9738]
[1721134783133,6.4009,156.23,156.19,6.4023]
[1721134783343,1.27857464,156.22,156.19,6.4023]
[1721134783544,1.27857464,156.24,156.19,6.4023]
[1721134783839,7.67967464,156.23,156.18,12.9739]
[1721134784640,1.27857464,156.22,156.18,12.9739]
[1721134785024,7.67977464,156.22,156.18,6.5711]
[1721134785837,1.27857464,156.21,156.18,6.5711]
[1721134786556,1.27857464,156.21,156.17,22.4109]
[1721134786557,1.27857464,156.2,156.17,22.4109]
[1721134788340,1.27857464,156.2,156.17,16.0077]
[1721134788646,1.27857464,156.2,156.17,22.4109]
[1721134789244,1.27857464,156.22,156.17,16.0077]
[1721134789429,1.27857464,156.24,156.17,17.28812809]
[1721134789747,1.27857464,156.23,156.17,16.0077]
[1721134790114,7.67947464,156.23,156.18,7.68315268]
[1721134790315,7.67947464,156.23,156.19,6.4023]
[1721134790524,1.27857464,156.22,156.18,22.1727]
[1721134790941,1.27857464,156.22,156.18,23.45309028]
[1721134791333,1.27857464,156.22,156.19,6.4024]
[1721134791522,7.67977464,156.22,156.18,23.45319028]
[1721134791718,6.4009,156.23,156.19,15.77]
[1721134791925,6.4009,156.23,156.2,15.77]
[1721134792224,6.4009,156.23,156.18,1.28039028]
[1721134792422,6.4009,156.23,156.19,15.77]
[1721134792625,7.67897464,156.24,156.19,22.1724]
[1721134792842,7.67957464,156.23,156.18,6.4027]
[1721134793025,7.67957464,156.23,156.19,15.77]
[1721134793220,7.67957464,156.23,156.19,22.1724]
[1721134793740,7.67897464,156.24,156.19,15.77]
[1721134793942,7.67897464,156.24,156.2,22.1719]
[1721134794143,6.4004,156.24,156.2,15.77]
[1721134794453,6.4,156.25,156.21,17.05026403]
[1721134794624,6.4,156.25,156.22,15.77]
[1721134794939,7.67817464,156.26,156.22,15.77]
[1721134795330,7.67817464,156.26,156.21,22.1715]
[1721134796548,7.67817464,156.26,156.21,6.4015]
[1721134796840,7.67817464,156.26,156.21,22.1715]
[1721134797241,7.67817464,156.26,156.21,6.4015]
[1721134797422,6.4,156.25,156.2,6.4019]
[1721134797623,6.4004,156.24,156.2,6.4019]
[1721134797823,6.4004,156.24,156.21,15.77]
[1721134798049,1.27857464,156.27,156.21,15.77]
[1721134798227,6.4,156.25,156.21,22.1715]
[1721134798426,7.67827464,156.26,156.21,22.1715]
[1721134798932,6.4,156.25,156.21,15.77]
[1721134799947,7.67897464,156.24,156.19,22.5777]
[1721134800125,6.4004,156.24,156.2,15.77]
[1721134800527,1.27857464,156.23,156.18,6.4025]
[1721134800728,1.27857464,156.25,156.18,22.1725]
[1721134800935,6.4014,156.22,156.17,6.4032]
[1721134801147,10.0,156.24,156.17,6.4032]
[1721134801148,7.68017464,156.21,156.18,15.77]
[1721134801346,7.68097464,156.2,156.16,16.0085]
[1721134801523,6.4017,156.21,156.18,15.77]
[1721134801939,6.4015,156.22,156.18,15.77]
[1721134802157,7.68027464,156.21,156.18,15.77]
[1721134802458,1.27857464,156.2,156.17,15.77]
[1721134802639,1.27857464,156.2,156.16,16.0085]
[1721134802842,1.27857464,156.23,156.19,15.77]
[1721134803257,1.27857464,156.24,156.2,6.4018]
[1721134803468,1.27857464,156.24,156.21,15.77]
[1721134803764,7.67777464,156.27,156.23,15.77]
[1721134803932,7.67807464,156.26,156.23,15.77]
[1721134804364,1.27857464,156.27,156.23,16.0019]
[1721134804557,10.0,156.33,156.24,1.27995615]
[1721134804739,1.27857464,156.32,156.28,15.77]
[1721134805167,1.27857464,156.32,156.27,15.77]
[1721134805347,6.398,156.3,156.27,15.77]
[1721134805669,6.398,156.3,156.25,22.3993]
[1721134805670,6.3983,156.3,156.25,22.3993]
[1721134805840,6.3983,156.29,156.26,15.77]
[1721134806337,6.398,156.3,156.25,22.3993]
[1721134806755,15.0627,156.34,156.25,22.3993]
[1721134807059,10.0,156.32,156.23,6.4007]
[1721134807471,10.0,156.32,156.22,38.9048]
[1721134807839,6.3989,156.28,156.23,6.4007]
[1721134808557,6.398,156.3,156.25,6.3996]
[1721134808958,6.3983,156.29,156.24,22.4006]
[1721134809365,6.3992,156.27,156.22,22.9021]
[1721134809662,10.0,156.32,156.22,22.9022]
[1721134809862,6.3994,156.27,156.22,22.9022]
[1721134810082,6.3996,156.26,156.21,29.0615]
[1721134810872,6.4001,156.25,156.21,16.0036]
[1721134811254,6.3997,156.26,156.21,22.4051]
[1721134811459,6.3997,156.26,156.22,6.4012]
[1721134811857,15.9965,156.29,156.21,16.0036]
[1721134812049,15.9965,156.29,156.18,15.9066]
[1721134812050,20.0,156.28,156.18,31.9131]
[1721134812555,6.4007,156.24,156.19,6.4021]
[1721134813453,6.4007,156.24,156.18,31.9131]
[1721134813454,6.4001,156.25,156.2,6.4019]
[1721134813844,6.3997,156.26,156.21,6.4015]
[1721134814065,31.9857,156.32,156.2,16.0045]
[1721134814066,6.3992,156.27,156.2,16.0045]
[1721134814254,6.3983,156.3,156.25,6.3998]
[1721134814644,6.3988,156.28,156.22,16.0025]
[1721134814844,6.3988,156.28,156.23,6.4006]
[1721134815051,6.3992,156.27,156.22,22.4036]
[1721134816156,6.3997,156.26,156.22,16.0025]
[1721134816361,6.3992,156.27,156.22,22.4037]
[1721134816662,6.3984,156.29,156.24,6.4003]
[1721134816862,6.3984,156.29,156.23,1.2800411]
[1721134817068,6.3996,156.26,156.22,16.0025]
[1721134817373,6.4009,156.23,156.19,16.0055]
[1721134817672,6.4004,156.24,156.19,22.4078]
[1721134818172,6.4008,156.23,156.19,22.4078]
[1721134818572,6.4005,156.24,156.19,22.4078]
[1721134819274,41.5043,156.27,156.18,15.9066]
[1721134819470,6.4012,156.22,156.17,13.0513]
[1721134820265,41.5043,156.27,156.19,6.4024]
[1721134820452,6.4007,156.24,156.19,6.4024]
[1721134820651,6.4012,156.22,156.17,13.0516]
[1721134820866,6.401,156.23,156.18,6.4027]
[1721134821255,10.0,156.23,156.15,31.51]
[1721134821566,6.4015,156.22,156.15,1.28062519]
[1721134821747,26.0004,156.25,156.17,6.4032]
[1721134821947,6.4019,156.21,156.16,16.0087]
[1721134822270,6.4019,156.21,156.16,22.4122]
[1721134822770,10.0,156.25,156.16,16.0087]
[1721134822966,10.0,156.23,156.16,16.0087]
[1721134823176,6.4017,156.21,156.16,22.4122]
[1721134823369,6.4017,156.21,156.17,6.4031]
[1721134823963,10.0,156.23,156.14,21.6327]
[1721134824274,6.4025,156.19,156.14,21.6327]
[1721134825151,10.0,156.23,156.1,48.0196]
[1721134825370,6.4041,156.15,156.1,22.3968]
[1721134825678,6.4038,156.16,156.11,6.4055]
[1721134825846,6.4033,156.17,156.12,6.4053]
[1721134826245,6.4032,156.18,156.11,16.0138]
[1721134826474,6.4032,156.18,156.12,6.4052]
[1721134826656,6.4033,156.17,156.12,6.4052]
[1721134826857,6.4028,156.19,156.13,7.6856061]
[1721134827176,10.0,156.23,156.14,17.29168312]
[1721134827367,6.4032,156.18,156.13,6.4048]
[1721134827573,6.404,156.16,156.11,47.5237]
[1721134827755,6.4031,156.18,156.12,1.2809031]
[1721134827956,6.4032,156.17,156.13,6.4048]
[1721134828280,16.0045,156.21,156.13,6.4049]
[1721134828574,6.4029,156.18,156.13,6.4047]
[1721134828879,6.4033,156.17,156.12,6.4052]
[1721134829066,6.4033,156.17,156.13,6.4048]
[1721134829456,6.4037,156.16,156.11,22.5893]
[1721134829776,6.4037,156.16,156.1,15.9907]
[1721134829777,6.4041,156.15,156.1,22.3967]
[1721134829971,20.0,156.18,156.1,15.9907]
[1721134830171,20.0,156.18,156.09,13.9095118]
[1721134830484,6.4042,156.15,156.1,6.406]
[1721134830653,6.4045,156.14,156.1,6.406]
[1721134830857,6.4049,156.13,156.09,7.5031118]
[1721134831054,10.0,156.18,156.09,7.5031118]
[1721134831055,6.4046,156.14,156.09,13.9093118]
[1721134832561,16.0054,156.2,156.09,7.5031118]
[1721134832781,6.4041,156.15,156.1,6.406]
[1721134832986,6.4046,156.14,156.09,13.9095118]
[1721134834078,10.0,156.19,156.09,7.5031118]
[1721134834079,16.0096,156.16,156.09,7.5031118]
[1721134834291,6.4056,156.12,156.09,0.8524118]
[1721134835065,16.0096,156.16,156.09,0.8524118]
[1721134835276,6.4048,156.14,156.09,7.2588118]
[1721134835465,16.0067,156.19,156.12,6.4053]
[1721134835784,15.4484,156.21,156.13,1.28080788]
[1721134836088,6.4041,156.15,156.12,6.4807]
[1721134836287,16.0077,156.18,156.09,0.8524118]
[1721134836469,16.0077,156.18,156.09,7.2588118]
[1721134836470,6.4049,156.13,156.09,7.2588118]
[1721134836669,6.4058,156.11,156.09,0.8524118]
[1721134836866,6.4052,156.13,156.09,0.8524118]
[1721134837066,6.4053,156.12,156.09,0.8524118]
[1721134837386,6.4061,156.1,156.09,0.8524118]
[1721134839387,6.4058,156.11,156.09,0.8524118]
[1721134839572,6.4052,156.13,156.09,0.8524118]
[1721134839898,6.4058,156.11,156.09,0.8524118]
[1721134840189,6.4054,156.12,156.09,0.8524118]
[1721134840397,6.405,156.13,156.09,23.7319118]
[1721134840566,26.0075,156.18,156.09,23.7319118]
[1721134840567,6.4057,156.11,156.09,23.7319118]
[1721134840773,6.4049,156.13,156.1,1.28125305]
[1721134840968,6.4049,156.13,156.09,0.8524118]
[1721134841188,6.4048,156.14,156.1,1.28104051]
[1721134841369,6.4048,156.14,156.11,1.28101705]
[1721134841563,6.4048,156.14,156.1,1.28101153]
[1721134841875,6.405,156.13,156.1,1.28101153]
[1721134842377,48.021,156.19,156.09,7.4288118]
[1721134842686,6.4048,156.14,156.1,6.576]
[1721134842895,16.0068,156.19,156.11,7.72654581]
[1721134843067,6.403,156.18,156.14,6.4043]
[1721134843276,10.0,156.24,156.15,1.28061698]
[1721134843483,10.0,156.24,156.15,6.4038]
[1721134843693,10.0,156.24,156.14,16.1806]
[1721134843694,6.4027,156.19,156.14,22.585]
[1721134843993,6.403,156.18,156.15,1.28062543]
[1721134844395,6.4025,156.19,156.15,7.68452543]
[1721134844601,10.0,156.24,156.15,1.28062543]
[1721134844896,14.64335249,156.25,156.18,6.4028]
[1721134845071,16.1121,156.29,156.19,23.62143276]
[1721134845406,16.1121,156.29,156.2,16.1746]
[1721134845694,6.3997,156.26,156.21,7.68159197]
[1721134845902,15.9953,156.3,156.21,6.4016]
[1721134846192,6.3984,156.29,156.24,6.4001]
[1721134846497,6.3984,156.29,156.25,0.17]
[1721134846671,6.3984,156.29,156.24,6.4003]
[1721134846866,6.3992,156.27,156.23,0.17]
[1721134847067,6.3987,156.29,156.24,6.4002]
[1721134847373,10.0,156.32,156.22,16.0025]
[1721134847592,6.3994,156.27,156.23,1.27991707]
[1721134847969,6.4,156.25,156.21,0.17]
[1721134848193,15.9956,156.3,156.21,1.2800295]
[1721134848194,25.9956,156.3,156.21,1.2800295]
[1721134848406,25.9956,156.3,156.19,69.857]
[1721134848407,6.4008,156.23,156.19,53.8513]
[1721134848579,6.4004,156.24,156.19,60.2536]
[1721134848893,6.4016,156.21,156.19,6.3909]
[1721134849273,15.9989,156.27,156.19,6.3909]
[1721134849688,6.402,156.2,156.19,6.3909]
[1721134849997,6.4025,156.19,156.15,21.9966]
[1721134850189,6.402,156.2,156.15,28.4006]
[1721134850571,6.4016,156.21,156.16,6.4035]
[1721134850773,16.0013,156.24,156.17,1.28041863]
[1721134850974,6.4015,156.22,156.18,1.28035951]
[1721134851280,6.4008,156.23,156.18,6.4026]
[1721134851682,6.4012,156.22,156.19,1.28036139]
[1721134851886,6.3999,156.26,156.19,1.28036139]
[1721134852093,6.3999,156.26,156.21,6.4013]
[1721134852396,14.88797501,156.29,156.22,1.28006848]
[1721134852592,6.3997,156.26,156.22,1.28006848]
[1721134853281,6.3997,156.26,156.21,22.405]
[1721134853282,14.88797501,156.29,156.23,6.7069]
[1721134853478,26.04342415,156.36,156.25,6.3996]
[1721134853795,20.0,156.33,156.24,16.1054]
[1721134854102,15.9932,156.32,156.24,16.1054]
[1721134854303,6.3988,156.28,156.24,16.1054]
[1721134854486,15.9932,156.32,156.24,16.1054]
[1721134854893,15.9954,156.3,156.24,16.1054]
[1721134855095,6.4,156.25,156.24,16.1054]
[1721134855296,6.4,156.25,156.23,6.5369]
[1721134855508,6.3992,156.27,156.23,6.5369]
[1721134855806,6.3988,156.28,156.24,1.27981916]
[1721134856182,6.3993,156.27,156.24,1.27981916]
[1721134856383,6.4004,156.24,156.23,6.5369]
[1721134856598,6.4009,156.23,156.2,15.4491]
[1721134856786,10.0,156.27,156.19,6.6184]
[1721134856978,6.402,156.2,156.19,6.6184]
[1721134857180,6.4028,156.18,156.17,1.28048265]
[1721134857384,16.0024,156.23,156.16,21.8877]
[1721134857698,31.9985,156.26,156.19,6.4022]
[1721134857699,6.4007,156.24,156.19,6.4022]
[1721134857902,6.4007,156.24,156.2,1.07291251]
[1721134858105,6.4007,156.24,156.18,16.0067]
[1721134858106,6.4009,156.23,156.18,22.4092]
[1721134858284,6.4008,156.24,156.19,6.5724]
[1721134858484,6.4001,156.25,156.2,6.5719]
[1721134858683,6.4001,156.25,156.21,1.28008031]
[1721134859301,15.9955,156.3,156.22,7.85102245]
[1721134859302,6.3992,156.27,156.22,7.85102245]
[1721134859513,15.9955,156.3,156.25,6.3996]
[1721134859514,6.3981,156.3,156.25,6.3996]
[1721134859687,6.3983,156.29,156.26,1.27960581]
[1721134860007,6.3992,156.27,156.24,16.5667]
[1721134860300,6.4,156.25,156.24,16.5667]
[1721134860501,6.4,156.25,156.23,6.2451]
[1721134860804,31.9797,156.35,156.19,6.2562]
[1721134860805,15.9984,156.27,156.19,6.2562]
[1721134861003,6.4019,156.21,156.19,6.2562]
[1721134861300,6.4016,156.21,156.19,6.2562]
[1721134861500,6.4018,156.21,156.19,6.2562]
[1721134861821,16.0004,156.25,156.16,15.8277]
[1721134862233,6.4036,156.17,156.15,6.0766]
[1721134862429,16.0046,156.21,156.15,6.0766]
[1721134862592,6.4033,156.17,156.15,6.0766]
[1721134862913,6.4043,156.15,156.11,21.4676]
[1721134863299,10.0,156.22,156.12,1.28088469]
[1721134863517,16.0015,156.24,156.12,1.28088469]
[1721134863708,16.0015,156.24,156.12,17.29338469]
[1721134864113,6.4019,156.21,156.16,6.4036]
[1721134864311,46.9493427,156.26,156.17,1.28050016]
[1721134864312,6.4016,156.22,156.17,1.28050016]
[1721134864510,6.4016,156.22,156.18,1.28033469]
[1721134864715,14.7406427,156.26,156.17,0.17]
[1721134864898,14.7406427,156.26,156.11,21.4676]
[1721134864899,10.0,156.23,156.13,16.0121]
[1721134865107,6.4037,156.16,156.12,0.17]
[1721134865419,6.4039,156.16,156.11,27.8731]
[1721134865624,26.001,156.24,156.12,17.29335199]
[1721134866108,6.4025,156.19,156.14,6.4041]
[1721134866304,16.0035,156.22,156.12,22.4175]
[1721134866496,6.4037,156.16,156.13,0.17]
[1721134866923,34.7406427,156.26,156.17,16.0074]
[1721134867125,6.4012,156.22,156.17,16.0074]
[1721134867311,40.7404427,156.26,156.14,16.0108]
[1721134867506,6.4018,156.21,156.15,1.28053925]
[1721134867712,6.4013,156.22,156.17,6.4029]
[1721134867906,16.0027,156.23,156.12,20.53039082]
[1721134868124,6.4019,156.21,156.16,6.4036]
[1721134868422,16.0027,156.23,156.13,46.62043886]
[1721134868423,16.0027,156.23,156.14,23.69498877]
[1721134868615,16.0027,156.23,156.14,22.4146]
[1721134868799,16.0027,156.23,156.15,6.404]
[1721134868999,16.0027,156.23,156.15,1.28053703]
[1721134869212,6.4035,156.17,156.12,6.4053]
[1721134869425,24.7406427,156.26,156.13,33.30499511]
[1721134869607,14.7406427,156.26,156.17,22.4109]
[1721134869812,24.7406427,156.26,156.17,22.4106]
[1721134870133,24.7406427,156.26,156.1,35.49]
[1721134870134,10.0,156.24,156.1,35.49]
[1721134870343,6.4024,156.2,156.14,6.4042]
[1721134870625,10.0,156.23,156.12,0.34]
[1721134870934,6.4043,156.15,156.1,6.4058]
[1721134871125,6.4037,156.16,156.11,27.8733]
[1721134871322,6.4032,156.18,156.12,7.68613459]
[1721134871624,16.0057,156.2,156.11,37.4813]
[1721134871825,6.4037,156.16,156.11,37.4813]
[1721134872133,6.4034,156.17,156.12,7.68573542]
[1721134872307,6.4037,156.16,156.12,7.68573542]
[1721134872503,6.4033,156.17,156.13,6.4048]
[1721134872815,6.4033,156.17,156.14,1.28072409]
[1721134873315,6.404,156.16,156.11,44.0569]
[1721134873739,6.4041,156.15,156.11,43.8869]
[1721134874106,26.0057,156.2,156.11,43.8869]
[1721134874302,6.4042,156.15,156.11,37.4813]
[1721134874732,6.4042,156.15,156.11,43.8869]
[1721134874923,6.4038,156.16,156.11,43.8869]
[1721134876231,6.4046,156.14,156.11,21.4676]
[1721134876437,26.0096,156.16,156.09,0.8524118]
[1721134876606,6.4056,156.12,156.09,2.1336062]
[1721134876803,6.4055,156.12,156.09,0.8524118]
[1721134877004,16.0096,156.16,156.09,2.13360595]
[1721134877218,6.4057,156.12,156.09,0.8524118]
[1721134877413,6.4057,156.11,156.09,0.8524118]
[1721134877622,6.405,156.13,156.09,0.8524118]
[1721134877829,6.4049,156.13,156.09,0.8524118]
[1721134878333,6.4053,156.12,156.09,0.8524118]
[1721134878640,26.0116,156.14,156.09,0.8524118]
[1721134878836,16.0116,156.14,156.09,0.8524118]
[1721134879031,6.4059,156.11,156.09,0.8524118]
[1721134879343,6.4061,156.1,156.09,0.8524118]
[1721134886245,16.9061,156.1,156.09,1.18e-05]
[1721134886761,6.9061,156.1,156.09,1.18e-05]
[1721134888351,16.9061,156.1,156.09,1.18e-05]
[1721134888558,6.9061,156.1,156.09,1.18e-05]
[1721134889345,27.0761,156.1,156.09,1.18e-05]
[1721134889938,26.9061,156.1,156.09,1.18e-05]
[1721134890936,27.0761,156.1,156.09,1.18e-05]
[1721134892543,103.70919961,156.1,156.09,1.18e-05]
[1721134892760,58.70919961,156.1,156.09,1.18e-05]
[1721134893064,65.31276864,156.1,156.09,1.18e-05]
[1721134893269,122.95919961,156.1,156.09,1.18e-05]
[1721134893438,123.12919961,156.1,156.09,1.18e-05]
[1721134893638,103.87919961,156.1,156.09,1.18e-05]
[1721134894476,123.12919961,156.1,156.09,1.18e-05]
[1721134895048,6.411,155.98,155.94,0.89268544]
[1721134895243,16.0226,156.03,155.94,0.89268544]
[1721134895244,20.0,156.02,155.94,0.89268544]
[1721134895475,6.411,155.98,155.94,0.89268544]
[1721134895636,10.0,156.04,155.95,31.6559]
[1721134895833,14.758841,156.05,155.99,6.4104]
[1721134896064,6.409,156.03,155.98,22.4383]
[1721134896241,6.4102,156.01,155.96,6.6007]
[1721134896448,10.0,156.04,155.96,6.6007]
[1721134896449,6.4111,155.98,155.96,6.6007]
[1721134896646,6.4106,156.0,155.96,7.88293148]
[1721134896970,6.4094,156.02,155.97,6.4114]
[1721134897134,6.4094,156.02,155.96,14.29473148]
[1721134897342,6.4098,156.01,155.96,13.0125]
[1721134897536,6.4103,156.0,155.96,6.6007]
[1721134898073,6.4103,156.0,155.96,7.8827815]
[1721134898440,6.4107,155.99,155.96,7.8827815]
[1721134898867,10.0,156.04,155.96,7.8827815]
[1721134899138,30.780241,156.05,155.96,7.88292249]
[1721134899344,6.4103,156.0,155.96,7.88292249]
[1721134899546,6.4109,155.99,155.96,7.88283366]
[1721134899749,16.0233,156.03,155.96,7.88285943]
[1721134900061,6.4099,156.01,155.96,14.29465943]
[1721134900391,6.4099,156.01,155.96,13.0122]
[1721134900392,6.4098,156.01,155.96,13.0122]
[1721134900570,14.758841,156.05,155.99,15.4496]
[1721134900879,6.4069,156.09,156.03,6.5496]
[1721134901084,0.5,156.1,156.04,17.30248105]
[1721134901285,0.5,156.1,156.05,45.0]
[1721134901443,6.9062,156.1,156.05,51.5778]
[1721134901649,6.4074,156.07,156.03,6.5496]
[1721134901950,6.4074,156.07,156.04,1.2814762]
[1721134902162,0.5,156.1,156.03,6.5496]
[1721134902163,16.0165,156.09,156.03,6.5496]
[1721134902491,6.4082,156.05,156.03,6.5496]
[1721134902851,6.4086,156.04,156.03,6.5496]
[1721134903180,6.4082,156.05,156.03,6.5496]
[1721134903345,16.0165,156.09,156.03,6.5496]
[1721134903745,6.4082,156.05,156.03,6.5496]
[1721134903946,6.4077,156.07,156.04,1.28171022]
[1721134904151,6.4069,156.08,156.05,1.28152679]
[1721134904372,6.4065,156.09,156.05,1.28152679]
[1721134904747,6.4071,156.08,156.05,1.28152679]
[1721134905173,6.4066,156.09,156.06,1.28148032]
[1721134905380,6.4066,156.09,156.04,7.68958865]
[1721134905550,6.4066,156.09,156.05,1.28137218]
[1721134906351,6.407,156.08,156.05,1.28137218]
[1721134906555,6.4066,156.09,156.06,1.2813877]
[1721134906985,6.407,156.08,156.06,1.2813877]
[1721134907280,6.4067,156.09,156.05,1.28138215]
[1721134907483,0.5,156.1,156.08,6.4068]
[1721134907778,0.5,156.1,156.09,59.4871745]
[1721134907951,0.5,156.1,156.09,6.6297]
[1721134908152,6.4036,156.17,156.1,16.0149]
[1721134908354,6.4033,156.17,156.12,6.4053]
[1721134908572,16.0043,156.21,156.13,1.28075637]
[1721134908763,16.0067,156.19,156.11,45.17]
[1721134908968,6.4036,156.17,156.12,7.68601463]
[1721134909176,6.4036,156.17,156.13,15.7463]
[1721134909386,6.4036,156.17,156.14,1.28063709]
[1721134909573,20.9374389,156.23,156.14,1.28063709]
[1721134909574,14.55388017,156.23,156.16,6.0165]
[1721134909893,14.55388017,156.23,156.17,1.45039778]
[1721134910184,14.55388017,156.23,156.18,1.280273]
[1721134910396,20.95478017,156.23,156.19,0.17]
[1721134910686,6.4009,156.23,156.19,45.17]
[1721134910977,6.4009,156.23,156.2,1.28015264]
[1721134911196,10.0,156.28,156.16,6.0165]
[1721134911488,6.4011,156.23,156.18,6.4028]
[1721134911656,6.4004,156.24,156.19,6.4024]
[1721134911859,39.91111882,156.3,156.23,6.4006]
[1721134911860,6.3991,156.28,156.23,6.4006]
[1721134912059,14.27591882,156.3,156.24,1.27992158]
[1721134912271,14.27591882,156.3,156.22,1.27992247]
[1721134912472,14.27591882,156.3,156.22,46.27992247]
[1721134912764,14.27591882,156.3,156.23,0.17]
[1721134912983,6.3983,156.29,156.24,12.6167]
[1721134913180,6.3991,156.28,156.24,6.2167]
[1721134913384,6.3979,156.3,156.25,1.44973034]
[1721134913593,6.3979,156.3,156.25,46.44973034]
[1721134914775,6.3967,156.33,156.27,15.9974]
[1721134914991,15.989,156.36,156.28,1.27944489]
[1721134915173,6.3975,156.32,156.28,1.27944489]
[1721134915594,6.3975,156.32,156.28,46.27944489]
[1721134915899,30.96503983,156.39,156.28,62.27594489]
[1721134916194,15.9875,156.38,156.28,62.27594489]
[1721134916402,10.0,156.33,156.24,6.2167]
[1721134916575,6.3988,156.28,156.25,1.27985825]
[1721134916769,10.0,156.35,156.24,6.2167]
[1721134917177,15.9926,156.33,156.24,6.2167]
[1721134917386,15.9946,156.31,156.24,6.2167]
[1721134917693,6.3999,156.26,156.24,6.2167]
[1721134918066,15.9946,156.31,156.24,6.2167]
[1721134918067,6.4,156.25,156.24,6.2167]
[1721134918869,6.4015,156.22,156.2,6.2962]
[1721134919495,15.9995,156.26,156.2,6.2962]